bitfinex/quotes_SOLUSD_20220109
["timestamp","ask_amount","ask_price","bid_price","bid_amount"]
[1641735598316,49.880089,139.3,139.25,39.62570532]
[1641735598514,49.880089,139.3,139.25,34.62570532]
[1641735602618,49.880089,139.3,139.25,28.85190532]
[1641735603720,49.880089,139.3,139.24,10.7744]
[1641735605421,25.016389,139.3,139.24,10.7744]
[1641735605621,25.016389,139.3,139.25,23.27406231]
[1641735605823,25.016389,139.3,139.26,10.7728]
[1641735606123,2.014589,139.29,139.25,29.89706231]
[1641735606324,2.014589,139.29,139.26,0.25]
[1641735606823,2.014589,139.31,139.26,0.25]
[1641735607023,2.014589,139.31,139.28,10.7714]
[1641735607221,2.014589,139.31,139.28,18.9904]
[1641735607421,2.014589,139.31,139.29,0.25]
[1641735607823,96.714589,139.32,139.29,30.2804651]
[1641735608524,96.714589,139.32,139.3,10.7677]
[1641735609026,94.7,139.32,139.31,35.25]
[1641735609425,2.014589,139.35,139.32,22.4598273]
[1641735609926,2.014589,139.36,139.33,10.7661]
[1641735610728,2.014589,139.38,139.33,10.7661]
[1641735610925,2.014589,139.38,139.33,19.1121]
[1641735611825,2.014589,139.38,139.34,0.25]
[1641735612026,2.014589,139.38,139.37,30.6045811]
[1641735612625,30.50730493,139.42,139.37,30.6045811]
[1641735612626,2.014589,139.41,139.37,30.6045811]
[1641735612827,2.014589,139.41,139.37,30.8545811]
[1641735613027,2.014589,139.41,139.38,0.25]
[1641735613226,2.014589,139.41,139.39,10.7619]
[1641735613428,2.014589,139.41,139.4,31.77499307]
[1641735613727,96.714589,139.44,139.4,31.77499307]
[1641735614426,96.714589,139.44,139.4,42.53669307]
[1641735614627,94.7,139.44,139.4,42.53669307]
[1641735615127,94.7,139.44,139.4,48.16769307]
[1641735615327,94.7,139.44,139.42,10.7565]
[1641735615728,4.01350493,139.48,139.44,11.2678105]
[1641735616027,4.01350493,139.48,139.45,3.51]
[1641735616227,4.01350493,139.48,139.46,31.91641807]
[1641735616430,4.01350493,139.48,139.47,35.25]
[1641735616730,94.7,139.49,139.47,18.356]
[1641735616927,71.9649,139.49,139.48,0.26]
[1641735617128,4.01350493,139.54,139.48,0.26]
[1641735617730,4.01350493,139.54,139.48,11.0122]
[1641735617927,81.03230493,139.58,139.49,24.48755168]
[1641735618127,79.24030493,139.58,139.49,27.48755168]
[1641735618327,79.24030493,139.58,139.5,0.26]
[1641735618529,4.01350493,139.58,139.5,0.26]
[1641735618731,4.01350493,139.58,139.5,6.658]
[1641735618938,24.6812,139.61,139.51,0.25]
[1641735619141,1.791,139.6,139.52,22.77897234]
[1641735619340,1.791,139.6,139.49,3.0]
[1641735619341,30.44715598,139.59,139.44,11.2678105]
[1641735619639,48.9947,139.58,139.44,11.2678105]
[1641735619838,59.7491,139.58,139.49,10.7546]
[1641735620037,71.04343269,139.58,139.49,10.7546]
[1641735620238,79.4726852,139.58,139.44,11.2678105]
[1641735620438,155.5127852,139.58,139.48,23.63705988]
[1641735621443,159.52629013,139.58,139.44,22.0255105]
[1641735621645,179.58954182,139.58,139.44,22.0255105]
[1641735622243,10.7574,139.54,139.44,22.0255105]
[1641735622442,1.792,139.53,139.45,31.40607953]
[1641735623072,1.792,139.53,139.45,42.16317953]
[1641735623272,24.4987,139.56,139.45,31.40607953]
[1641735623471,1.792,139.55,139.45,31.40607953]
[1641735623674,12.5484,139.55,139.45,31.40607953]
[1641735623872,12.5484,139.55,139.46,0.25]
[1641735624872,12.5484,139.55,139.46,11.0062]
[1641735625473,12.5484,139.55,139.46,10.7562]
[1641735626873,12.5484,139.55,139.45,31.40607953]
[1641735627877,12.5484,139.55,139.45,42.16367953]
[1641735628378,1.792,139.55,139.46,0.25]
[1641735628577,24.4987,139.56,139.46,5.732]
[1641735629379,24.4987,139.56,139.49,41.51667141]
[1641735629583,1.791,139.55,139.49,41.51667141]
[1641735630883,26.2897,139.56,139.5,0.25]
[1641735631081,26.2897,139.56,139.51,10.753]
[1641735631082,24.4987,139.56,139.51,10.753]
[1641735631680,24.4987,139.56,139.52,24.61713753]
[1641735631881,101.0394,139.58,139.52,24.61713753]
[1641735632783,24.9993,139.58,139.52,24.61713753]
[1641735634784,53.92509562,139.58,139.49,10.7539]
[1641735634983,64.67929562,139.58,139.49,10.7539]
[1641735635686,64.67929562,139.58,139.5,24.54076231]
[1641735636084,53.92509562,139.58,139.5,35.29456231]
[1641735636286,24.9993,139.58,139.5,35.29456231]
[1641735636990,4.03185491,139.57,139.5,35.29456231]
[1641735637686,8.04535984,139.57,139.5,35.29456231]
[1641735638086,8.04535984,139.57,139.45,35.8493]
[1641735638285,107.96290493,139.56,139.44,11.2678105]
[1641735638488,107.96290493,139.56,139.45,0.25]
[1641735639085,4.01350493,139.54,139.45,0.25]
[1641735639286,5.80550493,139.54,139.45,0.25]
[1641735639486,5.80550493,139.54,139.45,0.51]
[1641735639889,5.80550493,139.54,139.44,11.2678105]
[1641735640394,28.33540896,139.53,139.44,11.2678105]
[1641735640588,5.80550493,139.52,139.44,11.2678105]
[1641735640988,10.76,139.5,139.44,11.2678105]
[1641735641196,1.792,139.49,139.44,11.2678105]
[1641735642093,12.5531,139.49,139.44,11.2678105]
[1641735642297,8.06228924,139.48,139.44,11.2678105]
[1641735643096,10.7643,139.46,139.44,11.2678105]
[1641735643297,56.85639994,139.45,139.44,11.2678105]
[1641735643495,55.06439994,139.45,139.44,11.2678105]
[1641735643697,6.06439994,139.45,139.44,11.2678105]
[1641735644098,6.06439994,139.45,139.44,1e-08]
[1641735644797,3.03219997,139.45,139.44,1e-08]
[1641735645200,4.01350493,139.47,139.44,1e-08]
[1641735645413,6.06439994,139.46,139.44,10.75850001]
[1641735645798,4.01350493,139.49,139.45,29.6335256]
[1641735646498,4.01350493,139.5,139.45,40.3907256]
[1641735647399,4.01350493,139.5,139.45,29.6335256]
[1641735647601,4.01350493,139.5,139.44,1e-08]
[1641735647798,1.792,139.51,139.44,1e-08]
[1641735648901,4.01350493,139.49,139.44,10.75860001]
[1641735649131,4.01350493,139.49,139.45,31.2248842]
[1641735649302,4.01350493,139.49,139.45,31.4748842]
[1641735649703,8.07517063,139.51,139.45,31.4748842]
[1641735650304,4.01350493,139.51,139.45,31.4748842]
[1641735650506,80.33180493,139.52,139.45,31.4748842]
[1641735650904,80.33180493,139.52,139.45,42.2323842]
[1641735651505,80.33180493,139.52,139.45,44.01321006]
[1641735651704,4.01350493,139.52,139.45,42.2323842]
[1641735652505,4.01350493,139.52,139.45,41.9823842]
[1641735652707,8.07456317,139.52,139.45,41.9823842]
[1641735653309,4.01350493,139.51,139.45,41.9823842]
[1641735653509,4.01350493,139.51,139.46,0.25]
[1641735653808,4.01350493,139.51,139.45,31.2248842]
[1641735654010,8.07456317,139.52,139.45,31.2248842]
[1641735654909,8.07456317,139.52,139.46,10.7573]
[1641735656009,4.01350493,139.51,139.46,10.7573]
[1641735657437,4.01350493,139.51,139.44,1e-08]
[1641735657640,1.792,139.5,139.44,1e-08]
[1641735658239,25.7392,139.5,139.44,1e-08]
[1641735658439,4.01350493,139.48,139.44,1e-08]
[1641735658641,5.80550493,139.48,139.44,1e-08]
[1641735659341,8.07456317,139.47,139.44,1e-08]
[1641735659943,6.06439994,139.46,139.44,1e-08]
[1641735667556,6.03593862,139.52,139.48,59.47660005]
[1641735667751,6.03593862,139.52,139.48,67.25860005]
[1641735667952,24.3299,139.61,139.48,67.25860005]
[1641735667953,6.03593862,139.55,139.49,0.25]
[1641735668152,6.03593862,139.55,139.49,5.03082586]
[1641735668352,6.03593862,139.55,139.5,26.41802425]
[1641735668857,6.03593862,139.55,139.52,10.752]
[1641735669054,6.03593862,139.55,139.53,3.03219997]
[1641735669256,6.03593862,139.55,139.53,3.28219997]
[1641735669455,10.09669783,139.59,139.53,3.03219997]
[1641735669855,39.22173851,139.59,139.53,3.03219997]
[1641735670053,1.791,139.58,139.5,24.63719839]
[1641735671155,1.48565983,139.6,139.5,24.63719839]
[1641735671355,25.84445983,139.6,139.51,0.25]
[1641735671555,4.06075921,139.57,139.51,0.25]
[1641735671756,4.06075921,139.57,139.52,10.7529]
[1641735672160,82.15365921,139.59,139.53,25.046747]
[1641735672359,80.36265921,139.59,139.53,25.046747]
[1641735672857,76.3019,139.59,139.53,25.046747]
[1641735673459,76.3019,139.59,139.53,35.798347]
[1641735675462,76.3019,139.59,139.53,10.7516]
[1641735676462,76.3019,139.59,139.54,27.38836487]
[1641735676663,24.3588,139.6,139.55,10.7507]
[1641735677267,128.04030191,139.62,139.55,10.7507]
[1641735678366,1.791,139.61,139.55,10.7507]
[1641735678564,1.791,139.61,139.54,10.7514]
[1641735679966,1.791,139.61,139.53,10.7521]
[1641735680168,1.791,139.61,139.51,66.1351994]
[1641735680169,4.03966902,139.6,139.48,18.47660005]
[1641735680370,1.791,139.59,139.48,18.47660005]
[1641735680567,26.51342586,139.59,139.48,18.47660005]
[1641735680969,24.7326,139.59,139.48,29.23250005]
[1641735681167,27.17041404,139.58,139.48,52.63018426]
[1641735681366,1.791,139.57,139.48,52.63018426]
[1641735681967,1.791,139.57,139.49,0.25]
[1641735682574,1.791,139.58,139.49,0.25]
[1641735682897,1.791,139.58,139.49,36.0908]
[1641735683195,1.791,139.58,139.53,10.7523]
[1641735684397,22.9416,139.59,139.53,10.7523]
[1641735685999,1.791,139.6,139.53,10.7523]
[1641735686199,101.1677,139.62,139.57,10.749]
[1641735686401,23.0467,139.62,139.57,10.749]
[1641735688000,195.0948,139.64,139.57,10.749]
[1641735688202,193.3048,139.64,139.57,10.749]
[1641735688400,193.3048,139.64,139.6,10.7462]
[1641735688601,94.7,139.64,139.6,17.1102]
[1641735690104,1.79,139.68,139.61,22.70316338]
[1641735690303,1.79,139.69,139.61,22.95316338]
[1641735690515,1.79,139.69,139.63,10.7443]
[1641735691323,1.79,139.69,139.64,0.25]
[1641735691523,1.79,139.69,139.64,0.51]
[1641735691719,1.79,139.69,139.66,10.7378]
[1641735691923,94.7,139.71,139.67,3.28219997]
[1641735692217,94.7,139.71,139.68,25.75467781]
[1641735692818,94.7,139.71,139.69,10.9877]
[1641735693021,94.7,139.71,139.7,45.03219997]
[1641735693222,94.7,139.71,139.7,3.03219997]
[1641735693518,94.7,139.71,139.7,3.28219997]
[1641735693723,94.7,139.78,139.71,26.59902615]
[1641735693917,94.7,139.78,139.72,0.25]
[1641735694150,94.7,139.78,139.72,10.9866]
[1641735694346,94.7,139.78,139.69,35.7867]
[1641735694546,1.789,139.77,139.64,0.26]
[1641735694746,1.789,139.77,139.63,3.51]
[1641735694947,1.789,139.77,139.65,35.7987]
[1641735695346,1.789,139.77,139.63,0.51]
[1641735695347,1.789,139.77,139.66,27.07328052]
[1641735695547,96.489,139.78,139.66,26.56328052]
[1641735695847,96.489,139.78,139.67,0.51]
[1641735696151,96.489,139.78,139.7,10.7386]
[1641735696348,96.489,139.78,139.71,23.08467075]
[1641735698849,107.2284,139.78,139.71,23.08467075]
[1641735699450,107.2284,139.78,139.67,0.25]
[1641735699850,107.2284,139.78,139.67,0.51]
[1641735699851,95.489,139.78,139.67,0.51]
[1641735700250,93.7,139.78,139.67,2.04082586]
[1641735700453,76.841,139.8,139.68,0.51]
[1641735700851,76.841,139.8,139.74,10.7354]
[1641735701450,76.841,139.8,139.7,35.7847]
[1641735701650,76.841,139.8,139.71,0.25]
[1641735701850,76.841,139.8,139.73,10.7363]
[1641735702053,89.3663,139.8,139.71,0.25]
[1641735702452,104.49650635,139.8,139.71,0.25]
[1641735702652,104.49650635,139.8,139.68,35.791]
[1641735702852,110.91450635,139.8,139.68,10.7395]
[1641735703055,97.56512586,139.8,139.68,10.7395]
[1641735703252,76.841,139.8,139.69,3.0]
[1641735703460,76.841,139.8,139.69,4.78082586]
[1641735704053,76.841,139.8,139.72,10.7346]
[1641735704252,76.841,139.8,139.7,66.24738291]
[1641735704453,1.788,139.79,139.71,0.25]
[1641735704855,23.0366,139.78,139.71,0.25]
[1641735705264,23.0366,139.78,139.64,3.0]
[1641735705456,53.26267983,139.78,139.71,10.7373]
[1641735706057,23.0366,139.78,139.71,10.7373]
[1641735706659,1.788,139.79,139.71,10.7373]
[1641735706858,12.5252,139.8,139.71,10.7373]
[1641735707258,12.5252,139.8,139.72,30.12431191]
[1641735707461,1.788,139.8,139.73,10.7363]
[1641735707659,23.1189,139.81,139.73,10.7363]
[1641735707859,23.1189,139.81,139.74,0.51]
[1641735708060,23.1189,139.81,139.74,0.25]
[1641735708263,23.1189,139.81,139.72,30.12431191]
[1641735708459,23.1189,139.81,139.74,10.7356]
[1641735708665,1.788,139.8,139.74,10.7356]
[1641735709361,101.1849,139.83,139.75,0.25]
[1641735709560,101.1849,139.83,139.75,36.022]
[1641735709761,101.1849,139.83,139.75,44.7929795]
[1641735709960,101.1849,139.83,139.76,0.25]
[1641735710162,101.1849,139.83,139.78,10.7325]
[1641735710364,1.788,139.84,139.65,24.43992586]
[1641735710562,100.2559,139.84,139.66,3.0]
[1641735710766,100.2559,139.84,139.66,5.03082586]
[1641735711162,100.2559,139.84,139.68,25.25219434]
[1641735711365,100.2559,139.84,139.69,0.25]
[1641735711862,110.9903,139.84,139.75,10.7338]
[1641735712464,110.9903,139.84,139.72,49.67219707]
[1641735712663,110.9903,139.84,139.73,0.25]
[1641735713075,100.2559,139.84,139.77,10.7332]
[1641735713667,100.2559,139.84,139.75,25.25219434]
[1641735713866,100.2559,139.84,139.76,0.25]
[1641735714067,98.4679,139.84,139.76,0.25]
[1641735714267,98.4679,139.84,139.76,10.734]
[1641735714669,1.788,139.83,139.71,35.7834]
[1641735714867,1.788,139.83,139.72,0.25]
[1641735715069,1.788,139.83,139.68,1.78082586]
[1641735715270,23.4624,139.82,139.7,10.738]
[1641735715469,27.52359717,139.81,139.7,10.738]
[1641735716471,10.7376,139.8,139.72,10.7373]
[1641735716669,1.788,139.79,139.73,13.06388956]
[1641735716869,10.7376,139.8,139.73,13.31388956]
[1641735717671,10.7376,139.8,139.73,24.05038956]
[1641735717872,1.788,139.81,139.73,24.05038956]
[1641735718475,1.788,139.81,139.73,23.80038956]
[1641735719475,32.93358576,139.8,139.62,101.96792586]
[1641735719674,1.789,139.79,139.62,125.67332586]
[1641735719875,73.2373,139.78,139.62,125.67332586]
[1641735720176,1.789,139.77,139.62,125.67332586]
[1641735720404,25.5559,139.77,139.63,28.99789938]
[1641735720776,4.04049976,139.76,139.7,10.7389]
[1641735720979,4.04049976,139.76,139.7,23.88629203]
[1641735721376,4.04049976,139.76,139.63,3.0]
[1641735721575,26.7589,139.75,139.63,3.0]
[1641735721777,10.7424,139.73,139.66,10.742]
[1641735722075,1.789,139.72,139.66,10.742]
[1641735722276,10.7424,139.73,139.67,29.34088003]
[1641735722479,1.789,139.72,139.67,29.34088003]
[1641735722678,1.789,139.75,139.67,29.34088003]
[1641735722881,1.789,139.75,139.68,0.51]
[1641735723078,1.789,139.75,139.68,3.51]
[1641735723380,1.789,139.75,139.69,1.78082586]
[1641735723582,1.789,139.75,139.7,9.80441138]
[1641735723881,1.789,139.75,139.7,10.31441138]
[1641735724284,1.789,139.75,139.73,29.34088003]
[1641735724685,1.789,139.75,139.74,6.06439994]
[1641735725284,31.789,139.75,139.74,6.06439994]
[1641735725485,31.789,139.75,139.7,0.25]
[1641735725687,30.0,139.75,139.7,0.25]
[1641735726283,30.0,139.75,139.71,10.7382]
[1641735726689,30.0,139.75,139.69,26.19158687]
[1641735726884,30.0,139.75,139.67,36.045]
[1641735727084,30.0,139.75,139.67,0.25]
[1641735727283,30.0,139.75,139.65,0.25]
[1641735727484,30.0,139.75,139.69,10.7392]
[1641735727910,30.0,139.75,139.68,26.61201014]
[1641735728383,30.0,139.75,139.64,0.25]
[1641735728586,40.7405,139.75,139.63,3.0]
[1641735728786,1.789,139.74,139.63,3.0]
[1641735728985,5.84483448,139.74,139.63,3.0]
[1641735729185,5.84483448,139.74,139.64,25.05005125]
[1641735729384,5.84483448,139.74,139.64,25.31005125]
[1641735729585,5.84483448,139.74,139.68,10.7401]
[1641735729787,42.5295,139.75,139.68,24.83534016]
[1641735730088,31.789,139.75,139.68,24.83534016]
[1641735730288,1.789,139.75,139.68,24.83534016]
[1641735730587,4.0549734,139.74,139.69,0.25]
[1641735730887,4.0549734,139.74,139.7,10.7387]
[1641735731688,77.1319,139.76,139.7,10.7387]
[1641735733288,77.1319,139.76,139.71,22.91073551]
[1641735733488,77.1319,139.76,139.72,10.7373]
[1641735733690,1.789,139.79,139.71,23.16073551]
[1641735733887,1.789,139.79,139.71,0.25]
[1641735734087,12.5263,139.79,139.69,3.26]
[1641735734287,12.5263,139.79,139.69,3.0]
[1641735734688,12.5263,139.79,139.65,24.79152586]
[1641735734889,33.28462177,139.78,139.7,10.7391]
[1641735735090,33.28462177,139.78,139.7,18.40325942]
[1641735735718,4.05518315,139.77,139.7,18.40325942]
[1641735735919,16.58338315,139.77,139.7,7.66415942]
[1641735736519,2.02752433,139.73,139.69,10.7399]
[1641735736919,2.02752433,139.73,139.7,3.0]
[1641735737121,2.02752433,139.72,139.7,3.0]
[1641735737323,2.02752433,139.72,139.7,6.03219997]
[1641735737520,2.02752433,139.72,139.71,3.03219997]
[1641735739023,2.02752433,139.72,139.7,6.03219997]
[1641735739423,2.02752433,139.72,139.7,3.03219997]
[1641735739628,2.02752433,139.72,139.68,10.7405]
[1641735740125,2.02752433,139.72,139.69,0.25]
[1641735740730,2.02752433,139.72,139.68,10.7405]
[1641735740930,2.02752433,139.72,139.67,10.7414]
[1641735741334,2.02752433,139.72,139.64,35.8024]
[1641735741529,2.02752433,139.7,139.64,35.8024]
[1641735741932,2.02752433,139.7,139.65,3.26]
[1641735742131,2.02752433,139.7,139.67,10.7411]
[1641735742529,2.02752433,139.71,139.67,10.7411]
[1641735743433,2.02752433,139.71,139.66,10.7421]
[1641735743834,2.02752433,139.7,139.66,10.7421]
[1641735744235,2.02752433,139.7,139.66,35.86699888]
[1641735744632,2.02752433,139.69,139.66,35.86699888]
[1641735744833,2.02752433,139.69,139.67,6.06439994]
[1641735745234,2.02752433,139.7,139.67,16.80519994]
[1641735745438,2.02752433,139.7,139.68,0.25]
[1641735745835,2.02752433,139.7,139.64,35.8026]
[1641735746135,2.02752433,139.7,139.66,10.7421]
[1641735746736,2.02752433,139.68,139.66,10.7421]
[1641735746937,2.02752433,139.68,139.67,6.06439994]
[1641735747536,2.02752433,139.69,139.67,6.06439994]
[1641735749438,2.02752433,139.69,139.67,16.80579994]
[1641735750136,2.02752433,139.69,139.67,30.9936131]
[1641735750343,2.02752433,139.7,139.67,30.9936131]
[1641735752339,2.02752433,139.71,139.67,30.9936131]
[1641735752739,2.02752433,139.71,139.67,16.80579994]
[1641735754739,2.02752433,139.7,139.67,16.80579994]
[1641735757540,2.02752433,139.7,139.67,6.06439994]
[1641735758841,2.02752433,139.7,139.67,16.80599994]
[1641735759247,2.02752433,139.71,139.68,0.25]
[1641735759646,2.02752433,139.71,139.69,6.06439994]
[1641735759949,2.02752433,139.73,139.69,6.06439994]
[1641735760848,2.02752433,139.73,139.69,16.80289994]
[1641735764476,2.02752433,139.73,139.69,6.06439994]
[1641735765175,2.02752433,139.72,139.69,6.06439994]
[1641735766875,2.02752433,139.72,139.69,16.80439994]
[1641735767178,2.02752433,139.73,139.69,16.80439994]
[1641735769277,2.02752433,139.72,139.69,16.80439994]
[1641735770480,2.02752433,139.73,139.69,16.80439994]
[1641735771480,29.98173053,139.73,139.69,16.80439994]
[1641735771683,29.98173053,139.73,139.69,6.06439994]
[1641735772683,2.02752433,139.72,139.69,6.06439994]
[1641735773084,2.02752433,139.72,139.68,10.7407]
[1641735775687,2.02752433,139.73,139.69,0.25]
[1641735776087,2.02752433,139.73,139.7,10.739]
[1641735777092,2.02752433,139.73,139.69,10.9899]
[1641735777292,2.02752433,139.73,139.69,10.7399]
[1641735778291,2.02752433,139.72,139.69,10.7399]
[1641735779594,2.02752433,139.72,139.7,6.06439994]
[1641735779794,2.02752433,139.72,139.7,16.80349994]
[1641735779995,2.02752433,139.73,139.7,16.80349994]
[1641735780696,27.57588715,139.72,139.7,16.80349994]
[1641735780906,27.57588715,139.72,139.7,6.06439994]
[1641735781105,29.60341148,139.72,139.7,3.03219997]
[1641735781408,29.60341148,139.72,139.64,59.5765]
[1641735781703,29.60341148,139.72,139.65,0.25]
[1641735781704,2.02752433,139.71,139.65,0.25]
[1641735782507,2.02752433,139.71,139.64,35.8032]
[1641735783003,2.02752433,139.7,139.64,35.8032]
[1641735783605,2.02752433,139.7,139.66,10.7423]
[1641735787408,2.02752433,139.69,139.66,10.7423]
[1641735787608,2.02752433,139.69,139.67,3.03219997]
[1641735787812,2.02752433,139.69,139.65,10.743]
[1641735790238,24.95134403,139.69,139.65,10.743]
[1641735790452,22.9238197,139.69,139.6,79.3613]
[1641735790645,22.9238197,139.69,139.63,10.7442]
[1641735790646,1.79,139.68,139.63,10.7442]
[1641735790841,9.37,139.68,139.59,3.73784718]
[1641735791041,34.53332433,139.68,139.56,1.78082586]
[1641735791240,34.53332433,139.68,139.55,1.83564033]
[1641735791447,34.53332433,139.68,139.56,30.41440055]
[1641735792140,2.02752433,139.64,139.56,30.41440055]
[1641735792340,2.02752433,139.64,139.6,10.7471]
[1641735792540,2.02752433,139.64,139.54,36.57763673]
[1641735792742,1.79,139.63,139.52,74.50864033]
[1641735792945,1.79,139.63,139.52,1.83564033]
[1641735793542,23.47540324,139.62,139.52,1.83564033]
[1641735793743,1.791,139.61,139.52,1.83564033]
[1641735793942,24.7006,139.61,139.52,1.83564033]
[1641735794143,10.7521,139.59,139.53,10.7516]
[1641735794344,37.98625482,139.59,139.53,10.7516]
[1641735797044,37.98625482,139.59,139.48,18.62981926]
[1641735797245,24.7694,139.58,139.48,54.47351926]
[1641735798249,10.7543,139.56,139.5,10.754]
[1641735798849,33.69409934,139.56,139.5,10.754]
[1641735799252,33.69409934,139.56,139.49,10.7551]
[1641735800452,1.791,139.55,139.49,10.7551]
[1641735800653,12.5461,139.55,139.49,10.7551]
[1641735801051,1.791,139.55,139.49,10.7551]
[1641735801250,1.791,139.58,139.5,2.03082586]
[1641735801453,2.02752433,139.63,139.5,5.29082586]
[1641735801750,2.02752433,139.63,139.51,1.78082586]
[1641735801951,2.02752433,139.63,139.52,0.51]
[1641735802151,28.7307626,139.63,139.52,17.00245009]
[1641735802350,72.8854,139.65,139.53,1.78082586]
[1641735802551,72.8854,139.65,139.59,10.7474]
[1641735802752,50.32522433,139.67,139.59,10.7474]
[1641735802952,48.2977,139.67,139.59,10.7474]
[1641735803452,26.63702653,139.66,139.59,10.7474]
[1641735803953,1.79,139.65,139.59,10.7474]
[1641735804555,26.63702653,139.66,139.59,10.7474]
[1641735805855,37.38422653,139.66,139.59,10.7474]
[1641735806682,1.79,139.68,139.6,1.78082586]
[1641735806883,1.79,139.68,139.64,10.7421]
[1641735807284,1.79,139.68,139.65,2.03082586]
[1641735807683,1.79,139.68,139.66,1.78082586]
[1641735807884,30.21355604,139.72,139.66,10.7404]
[1641735814189,32.00255604,139.72,139.66,10.7404]
[1641735814789,32.00255604,139.72,139.67,0.25]
[1641735814989,76.15162433,139.73,139.69,10.739]
[1641735815190,2.02752433,139.73,139.69,10.739]
[1641735815390,2.02752433,139.75,139.69,10.739]
[1641735816191,26.46090832,139.76,139.69,10.739]
[1641735817492,24.43338399,139.76,139.69,10.739]
[1641735818599,3.81652433,139.77,139.69,10.739]
[1641735818994,3.81652433,139.77,139.7,3.51]
[1641735819195,3.81652433,139.77,139.73,10.7345]
[1641735819392,3.81652433,139.77,139.74,0.25]
[1641735819793,3.81652433,139.77,139.75,6.06439994]
[1641735820393,3.81652433,139.77,139.76,10.9832]
[1641735821297,1.789,139.77,139.76,10.9832]
[1641735822095,1.789,139.77,139.76,10.7332]
[1641735822298,1.789,139.77,139.75,3.03219997]
[1641735822497,1.788,139.81,139.75,3.03219997]
[1641735822699,1.788,139.81,139.64,113.0832]
[1641735822999,26.65351632,139.8,139.67,27.81527455]
[1641735823200,40.96024218,139.8,139.7,35.7864]
[1641735823398,39.17124218,139.8,139.72,10.7366]
[1641735823798,1.788,139.79,139.72,10.7366]
[1641735823997,1.788,139.79,139.67,27.81527455]
[1641735824198,26.09752586,139.79,139.64,102.1889]
[1641735824398,10.7405,139.76,139.68,10.7397]
[1641735824999,10.7405,139.76,139.69,0.25]
[1641735825199,34.67232006,139.76,139.69,0.25]
[1641735825398,34.67232006,139.76,139.68,10.7397]
[1641735826401,23.93182006,139.76,139.68,10.7397]
[1641735826802,23.93182006,139.76,139.69,0.25]
[1641735827002,23.93182006,139.76,139.7,10.7387]
[1641735828203,23.93182006,139.76,139.69,10.7396]
[1641735828402,23.93182006,139.76,139.6,17.10319058]
[1641735828604,1.789,139.75,139.63,22.5139]
[1641735828805,1.789,139.75,139.64,0.25]
[1641735829203,25.1663,139.75,139.64,0.25]
[1641735830205,25.1663,139.75,139.63,35.8049]
[1641735830805,25.1663,139.75,139.61,1.78082586]
[1641735831006,27.19382433,139.75,139.61,1.78082586]
[1641735831410,27.19382433,139.75,139.62,0.26]
[1641735831605,2.02752433,139.73,139.62,0.51]
[1641735831805,30.40453245,139.72,139.62,0.51]
[1641735832007,41.14773245,139.72,139.64,10.7429]
[1641735833609,43.17525678,139.72,139.64,10.7429]
[1641735835912,43.17525678,139.72,139.63,10.7444]
[1641735836116,43.17525678,139.72,139.59,35.8152]
[1641735836312,10.746,139.68,139.61,0.25]
[1641735837113,24.90609709,139.67,139.61,0.25]
[1641735837512,24.90609709,139.67,139.59,0.25]
[1641735838015,24.90609709,139.67,139.61,10.7458]
[1641735838217,2.02752433,139.69,139.61,10.7458]
[1641735839018,25.4949,139.7,139.61,10.7458]
[1641735839019,27.52242433,139.7,139.61,10.7458]
[1641735839217,28.02504818,139.69,139.61,10.7458]
[1641735842144,14.56192433,139.7,139.61,10.7458]
[1641735842444,14.56192433,139.7,139.66,10.7406]
[1641735842445,2.02752433,139.7,139.66,10.7406]
[1641735842945,2.02752433,139.73,139.66,10.7406]
[1641735843144,29.33860918,139.73,139.66,10.7406]
[1641735843954,27.31108485,139.73,139.69,10.7397]
[1641735844350,27.31108485,139.73,139.63,1.78082586]
[1641735844546,1.789,139.72,139.59,114.93986702]